bitfinex/quotes_BTCUSD_20250617
["timestamp","ask_amount","ask_price","bid_price","bid_amount"]
[1750195876684,0.72867712,104770.0,104760.0,0.0004741]
[1750195876896,0.90203712,104770.0,104760.0,0.0034741]
[1750195884599,0.71385016,104770.0,104760.0,0.0034741]
[1750195884807,0.73293895,104770.0,104760.0,0.0034741]
[1750195886382,0.73045895,104770.0,104760.0,0.0034741]
[1750195888794,0.55709895,104770.0,104760.0,0.0034741]
[1750195889010,0.73029895,104770.0,104760.0,0.0034741]
[1750195891620,0.81123959,104770.0,104760.0,0.0034741]
[1750195892963,0.55002321,104750.0,104740.0,0.35203601]
[1750195893179,0.72286321,104750.0,104740.0,0.21658926]
[1750195894762,0.72286321,104750.0,104740.0,0.22358926]
[1750195894987,0.72286321,104750.0,104740.0,0.22658926]
[1750195896799,0.80358108,104750.0,104740.0,0.22658926]
[1750195897027,0.53193243,104750.0,104740.0,0.22658926]
[1750195897478,0.72286321,104750.0,104740.0,0.42708562]
[1750195897699,0.72286321,104750.0,104740.0,0.42408562]
[1750195897914,0.72286321,104750.0,104740.0,0.21658926]
[1750195898138,0.71331713,104750.0,104740.0,0.21858926]
[1750195898593,0.71287713,104750.0,104740.0,0.21858926]
[1750195899928,0.71287713,104750.0,104740.0,0.22158926]
[1750195901008,0.71287713,104750.0,104740.0,0.42208562]
[1750195901468,0.71287713,104750.0,104740.0,0.41253827]
[1750195902089,0.71287713,104750.0,104740.0,0.22158926]
[1750195907394,0.71211713,104750.0,104740.0,0.22158926]
[1750195908180,0.54047713,104750.0,104740.0,0.22158926]
[1750195908395,0.34,104750.0,104740.0,0.44117951]
[1750195908619,0.57336229,104770.0,104760.0,0.21000371]
[1750195908843,0.0424676,104770.0,104760.0,0.40127657]
[1750195909061,0.41110028,104770.0,104760.0,0.40127666]
[1750195909277,0.40155566,104770.0,104760.0,0.41082165]
[1750195909494,0.60199461,104770.0,104760.0,0.40127666]
[1750195909713,0.59245072,104770.0,104760.0,0.40127666]
[1750195910813,0.59345072,104770.0,104760.0,0.39173158]
[1750195911707,0.40486649,104770.0,104760.0,0.39173158]
[1750195912569,0.41441075,104770.0,104760.0,0.39173158]
[1750195914212,0.40486649,104770.0,104760.0,0.39173158]
[1750195914907,0.17970509,104770.0,104760.0,0.39173158]
[1750195915354,0.17970509,104770.0,104760.0,0.40127666]
[1750195915583,0.17970509,104770.0,104760.0,0.39173158]
[1750195916785,0.17970509,104770.0,104760.0,0.40127675]
[1750195917021,0.51970509,104770.0,104760.0,0.40127675]
[1750195917248,0.51970509,104770.0,104760.0,0.45107675]
[1750195918008,0.51970509,104770.0,104760.0,0.44153158]
[1750195918252,0.51970509,104770.0,104760.0,0.45107675]
[1750195920180,0.341,104770.0,104760.0,0.45107675]
[1750195920451,0.62631456,104780.0,104770.0,0.2793798]
[1750195920674,0.61691327,104780.0,104770.0,0.37562165]
[1750195921117,0.61691327,104780.0,104770.0,0.34322165]
[1750195921345,0.61691327,104780.0,104770.0,0.3623108]
[1750195923388,0.60736965,104780.0,104770.0,0.35276627]
[1750195923618,0.60836965,104780.0,104770.0,0.35276627]
[1750195925615,0.60836965,104780.0,104770.0,0.38276627]
[1750195927224,0.59882585,104780.0,104770.0,0.37322165]
[1750195928110,0.59882585,104780.0,104770.0,0.17278261]
[1750195928333,0.59882585,104780.0,104770.0,0.36367694]
[1750195928557,0.59882585,104780.0,104770.0,0.37322165]
[1750195929257,0.69497507,104780.0,104770.0,0.09624176]
[1750195929484,0.69497507,104780.0,104770.0,0.14604176]
[1750195929705,0.59882585,104780.0,104770.0,0.14604176]
[1750195933371,0.59882585,104780.0,104770.0,0.22268261]
[1750195933576,0.59882585,104780.0,104770.0,0.45175451]
[1750195933577,0.08703467,104780.0,104770.0,0.45175451]
[1750195933783,0.06794835,104780.0,104770.0,0.62027451]
[1750195934647,0.06694835,104780.0,104770.0,0.62027451]
[1750195934859,0.06694835,104780.0,104770.0,0.62127451]
[1750195935069,0.06694835,104780.0,104770.0,0.62327451]
[1750195937807,0.05489545,104780.0,104770.0,0.62327451]
[1750195938014,0.02878214,104780.0,104770.0,0.62327451]
[1750195940329,0.02878214,104780.0,104770.0,0.62075451]
[1750195945117,0.02878214,104780.0,104770.0,0.62027451]
[1750195947330,0.02878214,104780.0,104770.0,0.40495451]
[1750195947548,0.0383253,104780.0,104770.0,0.62007451]
[1750195947768,0.05741236,104780.0,104770.0,0.43825366]
[1750195947987,0.25783219,104780.0,104770.0,0.62007451]
[1750195948208,0.25783283,104780.0,104770.0,0.34572165]
[1750195948422,0.24828939,104780.0,104770.0,0.52430542]
[1750195948642,0.27094577,104780.0,104770.0,0.31424176]
[1750195949094,0.27094577,104780.0,104770.0,0.32878261]
[1750195949758,0.23874577,104780.0,104770.0,0.32878261]
[1750195949942,0.23874577,104780.0,104770.0,0.32870261]
[1750195950178,0.27094577,104780.0,104770.0,0.32870261]
[1750195950395,0.27094577,104780.0,104770.0,0.11378261]
[1750195950608,0.27094577,104780.0,104770.0,0.32870261]
[1750195951471,0.23874577,104780.0,104770.0,0.11378261]
[1750195951692,0.27094577,104780.0,104770.0,0.32854261]
[1750195952112,0.27094577,104780.0,104770.0,0.32714261]
[1750195952813,0.27094577,104780.0,104770.0,0.16022261]
[1750195953024,0.27094577,104780.0,104770.0,0.32702261]
[1750195954763,0.23874577,104780.0,104770.0,0.16022261]
[1750195958549,0.23874577,104780.0,104770.0,0.15922261]
[1750195958769,0.23874577,104780.0,104770.0,0.16122261]
[1750195958962,0.23874577,104780.0,104770.0,0.15922261]
[1750195959441,0.23874577,104780.0,104770.0,0.16222261]
[1750195960154,0.23874577,104780.0,104770.0,0.35311694]
[1750195961315,0.23874577,104780.0,104770.0,0.36266165]
[1750195964553,0.23874577,104780.0,104770.0,0.37220627]
[1750195966904,0.23874577,104780.0,104770.0,0.60148627]
[1750195968473,0.23874577,104780.0,104770.0,0.55364627]
[1750195968704,0.23874577,104780.0,104770.0,0.59980627]
[1750195970085,0.22920206,104780.0,104770.0,0.59980627]
[1750195976027,0.22920206,104780.0,104770.0,0.6093508]
[1750195976257,0.22920206,104780.0,104770.0,0.61889524]
[1750195978289,0.22920206,104780.0,104770.0,0.6093508]
[1750195978510,0.22920206,104780.0,104770.0,0.61889524]
[1750195979169,0.22920206,104780.0,104770.0,0.62843959]
[1750195979618,0.22920206,104780.0,104770.0,0.62843914]
[1750195980030,0.22920206,104780.0,104770.0,0.59980609]
[1750195980265,0.22920206,104780.0,104770.0,0.60935053]
[1750195980485,0.0095438,104780.0,104770.0,0.59980609]
[1750195980709,0.20041992,104780.0,104770.0,0.59980609]
[1750195982240,0.20041992,104780.0,104770.0,0.60935053]
[1750195985444,0.20041992,104780.0,104770.0,0.59980609]
[1750195988401,0.20996345,104780.0,104770.0,0.60935044]
[1750195988862,0.20996345,104780.0,104770.0,0.59980609]
[1750195989813,0.20996345,104780.0,104770.0,0.60935053]
[1750195991093,0.20996345,104780.0,104770.0,0.38982261]
[1750195991297,0.20996345,104780.0,104770.0,0.59026165]
[1750195991520,0.20996345,104780.0,104770.0,0.59980627]
[1750195991941,0.20996345,104780.0,104770.0,0.6093508]
[1750195992581,0.20041992,104780.0,104770.0,0.6093508]
[1750195997174,0.20041992,104780.0,104770.0,0.61889524]
[1750195998055,0.20041992,104780.0,104770.0,0.57273524]
[1750195998269,0.20041992,104780.0,104770.0,0.61805524]
[1750195999402,0.20041992,104780.0,104770.0,0.62759959]
[1750195999656,0.20041992,104780.0,104770.0,0.61805524]
[1750196001130,0.20041992,104780.0,104770.0,0.6085108]
[1750196003120,0.20041992,104780.0,104770.0,0.61784821]
[1750196003997,0.20041992,104780.0,104770.0,0.58942165]
[1750196004429,0.20041992,104780.0,104770.0,0.59896618]
[1750196005767,0.20041992,104780.0,104770.0,0.58942165]
[1750196006199,0.20041992,104780.0,104770.0,0.59896627]
[1750196007271,0.20041992,104780.0,104770.0,0.6085108]
[1750196009669,0.20041992,104780.0,104770.0,0.34366261]
[1750196009911,0.20041992,104780.0,104770.0,0.57987694]
[1750196010126,0.20041992,104780.0,104770.0,0.58942165]
[1750196010342,0.20041992,104780.0,104770.0,0.57987694]
[1750196010602,0.20041992,104780.0,104770.0,0.58942165]
[1750196012150,0.20041992,104780.0,104770.0,0.59896627]
[1750196012372,0.22117612,104780.0,104770.0,0.38898261]
[1750196012599,0.22117612,104780.0,104770.0,0.37444176]
[1750196012600,0.65967822,104780.0,104770.0,0.37444176]
[1750196013050,0.6826052,104780.0,104770.0,0.2796]
[1750196013514,0.6826052,104780.0,104770.0,0.005]
[1750196013752,0.9326052,104780.0,104770.0,0.04832]
[1750196013979,1.1326052,104780.0,104770.0,0.04832]
[1750196014434,1.16123647,104780.0,104770.0,0.04532]
[1750196014654,1.16123647,104780.0,104750.0,0.22928]
[1750196014655,0.27110317,104760.0,104750.0,0.22928]
[1750196014877,0.21958998,104740.0,104730.0,0.40660198]
[1750196015098,0.21004326,104740.0,104730.0,0.79198459]
[1750196015319,0.21004326,104740.0,104730.0,0.37240261]
[1750196015538,0.20049627,104740.0,104730.0,0.14312261]
[1750196015981,0.17826233,104750.0,104730.0,0.5917231]
[1750196016202,0.17826233,104750.0,104730.0,0.33128134]
[1750196016203,0.20054356,104740.0,104730.0,0.33128134]
[1750196016416,0.20054356,104740.0,104730.0,0.3952231]
[1750196017704,0.20054356,104740.0,104730.0,0.4002231]
[1750196018119,0.20054356,104740.0,104730.0,0.4032231]
[1750196019671,0.20054356,104740.0,104730.0,0.39346261]
[1750196019890,0.20054356,104740.0,104730.0,0.37896176]
[1750196020117,0.20054356,104740.0,104730.0,0.569929]
[1750196020330,0.20054356,104740.0,104730.0,0.37896176]
[1750196021164,0.20054356,104740.0,104730.0,0.57947736]
[1750196021592,0.20054356,104740.0,104730.0,0.59857381]
[1750196021811,0.20054356,104740.0,104730.0,0.63077381]
[1750196023399,4.729e-05,104740.0,104730.0,1.27063304]
[1750196023858,4.729e-05,104740.0,104730.0,1.32063304]
[1750196024545,4.729e-05,104740.0,104730.0,1.73105571]
[1750196024760,4.729e-05,104740.0,104730.0,1.32063304]
[1750196025445,4.729e-05,104740.0,104730.0,1.31563304]
[1750196025675,4.729e-05,104740.0,104730.0,1.77605571]
[1750196025898,4.729e-05,104740.0,104730.0,1.78505571]
[1750196026134,4.729e-05,104740.0,104730.0,1.78205571]
[1750196026572,4.729e-05,104740.0,104730.0,1.78705571]
[1750196027009,4.729e-05,104740.0,104730.0,1.78688703]
[1750196029241,4.729e-05,104740.0,104730.0,0.96621037]
[1750196029510,4.729e-05,104740.0,104730.0,1.78688703]
[1750196029803,4.729e-05,104740.0,104730.0,1.81585993]
[1750196030092,4.729e-05,104740.0,104730.0,2.15585993]
[1750196031270,0.10488288,104780.0,104770.0,0.23406822]
[1750196031492,0.10488288,104780.0,104770.0,0.37602378]
[1750196032397,0.10588288,104780.0,104770.0,0.37602378]
[1750196032872,0.296759,104780.0,104770.0,0.36647971]
[1750196033083,0.03063068,104780.0,104770.0,0.37602378]
[1750196034253,0.01845177,104780.0,104770.0,0.60534378]
[1750196034707,0.02799521,104780.0,104770.0,0.60534378]
[1750196034924,0.03690657,104780.0,104770.0,0.60534378]
[1750196035610,0.03690648,104780.0,104770.0,0.60534378]
[1750196035821,0.03690638,104780.0,104770.0,0.60534378]
[1750196036037,0.04645009,104780.0,104770.0,0.60534378]
[1750196036468,0.03690638,104780.0,104770.0,0.60534378]
[1750196037608,0.03690638,104780.0,104770.0,0.61467997]
[1750196038063,0.02045433,104780.0,104770.0,0.61467997]
[1750196038711,0.02999777,104780.0,104770.0,0.61467997]
[1750196038925,0.02999768,104780.0,104770.0,0.61467997]
[1750196040365,0.03954112,104780.0,104770.0,0.61467997]
[1750196040577,0.0395413,104780.0,104770.0,0.64697997]
[1750196040818,0.03954121,104780.0,104770.0,0.64697997]
[1750196040998,0.02999768,104780.0,104770.0,0.64697997]
[1750196041251,0.0395413,104780.0,104770.0,0.64697997]
[1750196041957,0.0395413,104780.0,104770.0,0.61467997]
[1750196043035,0.02045433,104780.0,104770.0,0.61467997]
[1750196043499,0.02999768,104780.0,104770.0,0.64537997]
[1750196044186,0.02999758,104780.0,104770.0,0.64537997]
[1750196045034,0.04908455,104780.0,104770.0,0.64537997]
[1750196045253,0.04908455,104780.0,104770.0,0.61467997]
[1750196047168,0.03954093,104780.0,104770.0,0.67687997]
[1750196047379,0.04908446,104780.0,104770.0,0.67687997]
[1750196047617,0.04908446,104780.0,104770.0,0.64687997]
[1750196048270,0.05862808,104780.0,104770.0,0.64687997]
[1750196050390,0.04762808,104780.0,104770.0,0.64687997]
[1750196051502,0.02854093,104780.0,104770.0,0.67687997]
[1750196051730,0.03808446,104780.0,104770.0,0.67687997]
[1750196052618,0.02854093,104780.0,104770.0,0.67687997]
[1750196052840,0.03808437,104780.0,104770.0,0.67687997]
[1750196053057,0.0476279,104780.0,104770.0,0.67687997]
[1750196053279,0.04771719,104780.0,104770.0,0.64687997]
[1750196053721,0.22098908,104790.0,104770.0,0.65642395]
[1750196053944,0.22098908,104790.0,104780.0,0.09624176]
[1750196054163,0.22098908,104790.0,104780.0,0.28711788]
[1750196055130,0.22098908,104790.0,104780.0,0.29666168]
[1750196055801,0.22098908,104790.0,104780.0,0.28711788]
[1750196056684,0.22098908,104790.0,104780.0,0.29666168]
[1750196057130,0.22198908,104790.0,104780.0,0.29666168]
[1750196057346,0.22198908,104790.0,104780.0,0.30620539]
[1750196057780,0.25338908,104790.0,104780.0,0.14136176]
[1750196061093,0.25338908,104790.0,104780.0,0.34178168]
[1750196061714,0.22198908,104790.0,104780.0,0.34178168]
[1750196062393,0.23094019,104790.0,104780.0,0.34178168]
[1750196064770,0.00995111,104790.0,104780.0,0.41805284]
[1750196065040,0.00995111,104790.0,104780.0,0.44935284]
[1750196069020,0.00895111,104790.0,104780.0,0.45135284]
[1750196069233,0.00895111,104790.0,104780.0,0.45435284]
[1750196070584,0.01849336,104790.0,104780.0,0.45435284]
[1750196070800,0.00895111,104790.0,104780.0,0.45435284]
[1750196072506,0.04770836,104800.0,104790.0,0.23402633]
[1750196072729,0.05664933,104800.0,104790.0,0.33026809]
[1750196072959,0.23794768,104800.0,104790.0,0.32072584]
[1750196073390,0.23794768,104800.0,104790.0,0.33026818]
[1750196073609,0.74077923,104810.0,104790.0,0.33981043]
[1750196073823,0.77117923,104810.0,104800.0,0.09624176]
[1750196074467,0.43109923,104810.0,104800.0,0.09624176]
[1750196074903,0.43209923,104810.0,104800.0,0.09624176]
[1750196075361,0.43109923,104810.0,104800.0,0.09624176]
[1750196075574,0.43209923,104810.0,104800.0,0.09624176]
[1750196075786,0.23789923,104810.0,104800.0,0.29662334]
[1750196076676,0.23789923,104810.0,104800.0,0.30616514]
[1750196077082,0.20779923,104810.0,104800.0,0.30616514]
[1750196077297,0.20779923,104810.0,104800.0,0.31570685]
[1750196078215,0.24009923,104810.0,104800.0,0.31570685]
[1750196079583,0.24009923,104810.0,104800.0,0.30616514]
[1750196080526,0.24009923,104810.0,104800.0,0.30620514]
[1750196080739,0.24009923,104810.0,104800.0,0.29666334]
[1750196081137,0.24009923,104810.0,104800.0,0.28712145]
[1750196081782,0.24009923,104810.0,104800.0,0.33224145]
[1750196081996,0.24009923,104810.0,104800.0,0.34178343]
[1750196082208,0.24009923,104810.0,104800.0,0.14140176]
[1750196082423,0.24009923,104810.0,104800.0,0.35132532]
[1750196083152,0.026438,104810.0,104800.0,0.38494904]
[1750196083363,0.03597797,104810.0,104800.0,0.44944904]
[1750196083579,0.04551868,104810.0,104800.0,0.44944904]
[1750196084234,0.03497797,104810.0,104800.0,0.44944904]
[1750196084445,0.04451868,104810.0,104800.0,0.44944904]
[1750196084664,0.04451868,104810.0,104800.0,0.45044904]
[1750196084846,0.0158972,104810.0,104800.0,0.61416904]
[1750196085050,0.0158972,104810.0,104800.0,0.61516904]
[1750196085517,0.0158972,104810.0,104800.0,0.61416904]
[1750196085717,0.02482967,104810.0,104800.0,0.61316904]
[1750196085925,0.02482967,104810.0,104800.0,0.61516904]
[1750196086132,0.02482967,104810.0,104800.0,0.61816904]
[1750196086349,0.02482967,104810.0,104800.0,1.02849429]
[1750196086567,0.01382091,104810.0,104800.0,1.90507174]
[1750196086852,0.00488844,104810.0,104800.0,1.90507174]
[1750196087292,0.00488844,104810.0,104800.0,1.95507174]
[1750196088416,0.00488844,104810.0,104800.0,1.87881954]
[1750196088862,0.00488844,104810.0,104800.0,1.46805154]
[1750196089363,0.00488844,104810.0,104800.0,1.05816904]
[1750196089581,0.00488844,104810.0,104800.0,1.49322282]
[1750196089800,0.00488844,104810.0,104800.0,1.46805154]
[1750196091342,0.2983366,104850.0,104830.0,0.21940165]
[1750196091343,0.18651988,104850.0,104830.0,0.21940165]
[1750196091556,0.19542754,104850.0,104840.0,0.14120176]
[1750196091764,0.19542754,104850.0,104840.0,0.33196864]
[1750196091765,0.11917534,104850.0,104840.0,0.33196864]
[1750196092060,0.11917534,104850.0,104840.0,0.35104514]
[1750196092273,0.11917534,104850.0,104840.0,0.36058321]
[1750196092715,0.11931104,104850.0,104840.0,0.35104514]
[1750196092934,0.11431104,104850.0,104840.0,0.35104514]
[1750196093907,0.11531104,104850.0,104840.0,0.35104514]
[1750196094138,0.11531104,104850.0,104840.0,0.37012091]
[1750196094364,0.02911758,104850.0,104840.0,0.39419946]
[1750196094581,0.03865492,104850.0,104840.0,0.38466176]
[1750196095033,0.03865492,104850.0,104840.0,0.38466185]
[1750196095259,0.2604036,104850.0,104840.0,0.39419964]
[1750196095483,0.2604036,104850.0,104840.0,0.38466185]
[1750196096438,0.2604036,104850.0,104840.0,0.61386185]
[1750196097113,0.2604036,104850.0,104840.0,0.62339964]
[1750196097573,0.2294036,104850.0,104840.0,0.62339964]
[1750196097795,0.2294036,104850.0,104840.0,0.57843964]
[1750196098021,0.2294036,104850.0,104840.0,0.78699964]
[1750196098907,0.22939305,104850.0,104840.0,0.78699964]
[1750196099571,0.22939305,104850.0,104840.0,0.76792397]
[1750196099866,0.21985608,104850.0,104840.0,0.75218033]
[1750196100091,0.24995608,104850.0,104840.0,0.7617184]
[1750196100513,0.24995608,104850.0,104840.0,0.77125638]
[1750196100869,0.24995608,104850.0,104840.0,0.78079426]
[1750196101110,0.21985594,104850.0,104840.0,0.78079371]
[1750196101357,0.02910726,104850.0,104840.0,0.7714852]
[1750196101584,0.02910726,104850.0,104840.0,0.77148474]
[1750196101805,0.02910726,104850.0,104840.0,0.75907345]
[1750196102020,0.03864359,104850.0,104840.0,0.75907345]
[1750196102234,0.02910634,104850.0,104840.0,0.79067345]
[1750196102665,0.0386435,104850.0,104840.0,0.79067345]
[1750196102888,0.03864341,104850.0,104840.0,0.79067345]
[1750196103535,0.0386435,104850.0,104840.0,0.79067345]
[1750196103758,0.02910634,104850.0,104840.0,0.79067345]
[1750196104006,0.02910634,104850.0,104840.0,0.82187345]
[1750196104007,0.01956937,104850.0,104840.0,0.82187345]
[1750196104223,0.01003267,104850.0,104840.0,1.69796815]
[1750196104673,0.01003267,104850.0,104840.0,0.38411345]
[1750196104923,0.02810598,104850.0,104840.0,0.58207345]
[1750196105151,0.00903267,104850.0,104840.0,0.79059345]
[1750196105385,0.01003267,104850.0,104840.0,0.82299345]
[1750196105827,0.01003267,104850.0,104840.0,0.82295345]
[1750196106042,0.01003267,104850.0,104840.0,0.82695345]
[1750196106496,0.00903267,104850.0,104840.0,0.82695345]
[1750196107197,0.00903267,104850.0,104840.0,0.83195345]
[1750196108262,0.00903029,104850.0,104840.0,0.83195345]
[1750196109475,0.00903029,104850.0,104840.0,1.24183595]
[1750196110794,0.00903029,104850.0,104840.0,0.83195345]
[1750196111210,0.00903029,104850.0,104840.0,1.23252945]
[1750196111686,0.00903029,104850.0,104840.0,1.22012079]
[1750196112337,0.00903029,104850.0,104840.0,0.81015829]
[1750196112787,0.0185669,104850.0,104840.0,0.58267829]
[1750196113029,0.00903029,104850.0,104840.0,0.74615829]
[1750196113440,0.01857938,104850.0,104840.0,0.74615829]
[1750196113649,0.26993935,104850.0,104840.0,0.24636802]
[1750196113853,0.26993935,104850.0,104840.0,0.45997557]
[1750196113854,0.2935032,104850.0,104840.0,0.45997557]
[1750196114097,0.2935032,104850.0,104840.0,0.51447373]
[1750196114323,0.2935032,104850.0,104840.0,0.52901458]
[1750196114529,0.2935032,104850.0,104840.0,0.52501476]
[1750196114530,0.34873774,104850.0,104840.0,0.52501476]
[1750196114749,0.34873774,104850.0,104840.0,0.52080917]
[1750196114971,0.3392004,104850.0,104840.0,0.52080917]
[1750196115169,0.32966297,104850.0,104840.0,0.0768431]
[1750196115832,0.66966297,104850.0,104840.0,0.007]
[1750196116051,0.26390504,104840.0,104830.0,0.22912]
[1750196116282,0.23166246,104810.0,104800.0,0.22916]
[1750196116517,0.24056944,104810.0,104800.0,0.57074343]
[1750196116767,0.61286944,104810.0,104800.0,0.09628176]
[1750196116986,0.61286944,104810.0,104800.0,0.045]
[1750196117860,0.61286944,104810.0,104800.0,0.001]
[1750196118291,0.61286944,104810.0,104800.0,0.04688]
[1750196118714,0.61286944,104810.0,104800.0,0.04588]
[1750196119179,0.68245448,104810.0,104800.0,0.04488]
[1750196119599,0.20040079,104790.0,104780.0,0.02408465]
[1750196119818,0.20930777,104790.0,104780.0,0.39436641]
[1750196120036,0.20930777,104790.0,104780.0,0.59478624]
[1750196120453,0.20929742,104790.0,104780.0,0.32074624]
[1750196120887,0.21884004,104790.0,104780.0,0.60436986]
[1750196121314,0.22184004,104790.0,104780.0,0.60436986]
[1750196121523,0.22184004,104790.0,104780.0,0.33028986]
[1750196121744,0.22184004,104790.0,104780.0,0.33983339]
[1750196121981,0.01189663,104790.0,104780.0,1.0647385]
[1750196122193,0.01189663,104790.0,104780.0,1.0970385]
[1750196122413,0.01189663,104790.0,104780.0,0.687156]
[1750196123273,0.01189663,104790.0,104780.0,0.850636]
[1750196123690,0.01188105,104790.0,104780.0,0.850636]
[1750196124537,0.01188105,104790.0,104780.0,1.2605185]
[1750196125364,0.01188105,104790.0,104780.0,1.6005185]
[1750196125574,0.01188105,104790.0,104780.0,1.190636]
[1750196125783,0.01188105,104790.0,104780.0,1.6005185]
[1750196125987,0.01187678,104790.0,104780.0,1.6005185]
[1750196126404,0.01187678,104790.0,104780.0,1.190636]
[1750196126616,0.01187678,104790.0,104780.0,1.6005185]
[1750196126837,0.01187678,104790.0,104780.0,1.61014854]
[1750196129995,0.01187479,104790.0,104780.0,1.61014854]
[1750196136625,0.01187479,104790.0,104780.0,1.66014854]
[1750196140131,0.0762522,104820.0,104810.0,0.23398445]
[1750196140341,0.07639433,104820.0,104810.0,0.53850621]
[1750196140778,0.00014213,104820.0,104810.0,0.53850621]
[1750196141222,0.00014213,104820.0,104810.0,1.01218871]
[1750196141435,0.00014213,104820.0,104810.0,1.45218871]
[1750196141650,0.00214213,104820.0,104810.0,1.45218871]
[1750196142282,0.00014213,104820.0,104810.0,1.45218871]
[1750196142708,0.00314213,104820.0,104810.0,1.45218871]
[1750196142934,0.00014213,104820.0,104810.0,1.45218871]
[1750196143399,0.00014213,104820.0,104810.0,1.46018871]
[1750196143604,0.00014213,104820.0,104810.0,1.46418871]
[1750196144027,0.00014213,104820.0,104810.0,1.46022871]
[1750196144462,0.00014213,104820.0,104810.0,1.46622871]
[1750196145991,0.00014213,104820.0,104810.0,1.47581928]
[1750196147917,0.18449539,104860.0,104850.0,0.23390073]
[1750196148126,0.18463739,104860.0,104850.0,0.76738249]
[1750196148546,0.19417346,104860.0,104850.0,0.76738249]
[1750196148759,0.18463739,104860.0,104850.0,0.76738249]
[1750196148960,0.17510142,104860.0,104850.0,0.76738249]
[1750196149170,0.1846373,104860.0,104850.0,0.76738249]
[1750196149386,0.19417337,104860.0,104850.0,0.76738249]
[1750196149601,0.19417327,104860.0,104850.0,0.76738249]
[1750196150032,0.20370943,104860.0,104850.0,0.76738249]
[1750196150247,0.19417327,104860.0,104850.0,0.76738249]
[1750196150466,0.20371007,104860.0,104850.0,0.76738249]
[1750196150718,0.19417373,104860.0,104850.0,0.7578457]
[1750196151179,0.20370998,104860.0,104850.0,0.76738249]
[1750196151389,0.20371053,104860.0,104850.0,0.76738249]
[1750196151594,0.19417419,104860.0,104850.0,0.76738249]
[1750196152011,0.20306733,104860.0,104850.0,0.76738249]
[1750196152209,0.21260376,104860.0,104850.0,0.76738249]
[1750196152650,0.20306733,104860.0,104850.0,0.76738249]
[1750196152858,0.20306671,104860.0,104850.0,0.76738249]
[1750196153279,0.19353046,104860.0,104850.0,0.76738249]
[1750196153484,0.1839943,104860.0,104850.0,0.76738249]
[1750196153696,0.19353046,104860.0,104850.0,0.76738249]
[1750196153913,0.17510178,104860.0,104850.0,0.76738249]
[1750196154121,0.18399416,104860.0,104850.0,0.76738249]
[1750196154329,0.19353032,104860.0,104850.0,0.76738249]
[1750196154535,0.12963032,104860.0,104850.0,0.79255377]
[1750196154747,0.12963032,104860.0,104850.0,0.76738249]
[1750196154748,0.13212231,104860.0,104850.0,0.76738249]
[1750196155374,0.14165801,104860.0,104850.0,0.76738249]
[1750196155583,0.13212231,104860.0,104850.0,0.76738249]
[1750196156004,0.13212151,104860.0,104850.0,0.76738249]
[1750196156205,0.13212151,104860.0,104850.0,0.79255377]
[1750196156422,0.10102151,104860.0,104850.0,0.76738249]
[1750196157051,0.13242151,104860.0,104850.0,0.76738249]
[1750196157898,0.14195721,104860.0,104850.0,0.76738249]
[1750196158105,0.1010204,104860.0,104850.0,0.76738249]
[1750196158596,0.1105561,104860.0,104850.0,0.76738249]
[1750196158982,0.1010204,104860.0,104850.0,0.76738249]
[1750196159448,0.11055619,104860.0,104850.0,0.76738249]
[1750196159893,0.13658556,104860.0,104850.0,0.74063921]
[1750196160105,0.14612126,104860.0,104850.0,0.74063921]
[1750196160322,0.13658556,104860.0,104850.0,0.74063921]
[1750196160774,0.13658556,104860.0,104850.0,0.56778242]
[1750196160775,0.19669312,104860.0,104850.0,0.56778242]
[1750196160987,0.21974688,104860.0,104850.0,0.74047921]
[1750196161223,0.21974688,104860.0,104850.0,0.71876337]
[1750196161434,0.21974679,104860.0,104850.0,0.71876337]
[1750196162385,0.21974688,104860.0,104850.0,0.71876337]
[1750196162875,0.21974679,104860.0,104850.0,0.71876337]
[1750196163111,0.22928313,104860.0,104850.0,0.51088337]
[1750196163349,0.22928313,104860.0,104850.0,0.71880337]
[1750196164658,0.23753066,104860.0,104850.0,0.71880337]
[1750196165105,0.23754688,104860.0,104850.0,0.71880337]
[1750196165320,0.24708322,104860.0,104850.0,0.71880337]
[1750196165762,0.24708322,104860.0,104850.0,0.71259885]
[1750196166216,0.23754688,104860.0,104850.0,0.71259885]
[1750196166694,0.23757874,104860.0,104850.0,0.71259885]
[1750196167327,0.22804249,104860.0,104850.0,0.70018982]
[1750196167545,0.23757874,104860.0,104850.0,0.70018982]
[1750196167762,0.23757874,104860.0,104850.0,0.67728083]
[1750196167971,0.22804249,104860.0,104850.0,0.67728083]
[1750196168185,0.23757874,104860.0,104850.0,0.67728083]
[1750196169448,0.22804249,104860.0,104850.0,0.67728083]
[1750196169681,0.20630246,104860.0,104850.0,0.67728083]
[1750196169866,0.20630246,104860.0,104850.0,0.65437185]
[1750196170071,0.20631799,104860.0,104850.0,0.65437185]
[1750196170730,0.16817418,104860.0,104850.0,0.63886055]
[1750196170966,0.19678192,104860.0,104850.0,0.63886055]
[1750196171186,0.19678192,104860.0,104850.0,0.62955407]
[1750196172016,0.20631817,104860.0,104850.0,0.62955407]
[1750196172442,0.21585451,104860.0,104850.0,0.62955407]
[1750196173292,0.20631817,104860.0,104850.0,0.61714486]
[1750196173499,0.1795565,104860.0,104850.0,0.61714486]
[1750196173712,0.20637177,104860.0,104850.0,0.61714486]
[1750196173914,0.20637168,104860.0,104850.0,0.61714486]
[1750196174144,0.19683552,104860.0,104850.0,0.61714486]
[1750196174770,0.13672778,104860.0,104850.0,0.61714486]
[1750196174982,0.13672778,104860.0,104850.0,0.68084486]
[1750196175190,0.13672778,104860.0,104850.0,0.64874486]
[1750196175406,0.44878884,104860.0,104850.0,0.37016176]
[1750196175832,0.44878884,104860.0,104850.0,0.34725029]
[1750196176991,0.44878884,104860.0,104850.0,0.30249029]
[1750196177217,0.44879207,104860.0,104850.0,0.34725029]
[1750196179366,0.41223391,104860.0,104850.0,0.33483986]
[1750196179795,0.41223391,104860.0,104850.0,0.31192867]
[1750196180659,0.41223379,104860.0,104850.0,0.31192867]
[1750196180872,0.41223379,104860.0,104850.0,0.30572359]
[1750196181093,0.41223379,104860.0,104850.0,0.49647227]
[1750196181314,0.41223379,104860.0,104850.0,0.29641597]
[1750196181759,0.41223379,104860.0,104850.0,0.48716465]
[1750196183250,0.41223379,104860.0,104850.0,0.29641597]
[1750196183462,0.41223379,104860.0,104850.0,0.48716465]
[1750196184121,0.75223379,104860.0,104850.0,0.48716465]
[1750196184536,0.75223379,104860.0,104850.0,0.29641597]
[1750196184746,0.75223254,104860.0,104850.0,0.29641597]
[1750196185416,0.51372457,104860.0,104850.0,0.29641597]
[1750196185623,0.51372429,104860.0,104850.0,0.29641597]
[1750196187080,0.51372429,104860.0,104850.0,0.25165597]
[1750196187287,0.51372429,104860.0,104850.0,0.29625597]
[1750196187487,0.51371704,104860.0,104850.0,0.29625597]
[1750196187910,0.51371704,104860.0,104850.0,0.25165597]
[1750196188139,0.51371704,104860.0,104850.0,0.29625597]
[1750196188318,0.57921704,104860.0,104850.0,0.29625597]
[1750196188931,0.6734358,104860.0,104850.0,0.25165597]
[1750196189143,0.6734358,104860.0,104850.0,0.29625597]
[1750196190200,0.57921704,104860.0,104850.0,0.29625597]
[1750196190819,0.57921704,104860.0,104850.0,0.22916]